fUSD/lending_fUSD_20250814
["ID","MTS","AMOUNT","RATE_DAILY","PERIOD"]
[379118283,1755151857089,-151.0,0.00039667,7]
[379118285,1755151857099,-151.0,0.00039667,7]
[379118287,1755151857108,-151.0,0.00039667,7]
[379118289,1755151857118,-151.0,0.00039667,7]
[379118291,1755151857130,-151.0,0.00039667,7]
[379118293,1755151857139,-151.0,0.00039667,7]
[379118295,1755151857148,-151.0,0.00039667,7]
[379118297,1755151857157,-151.0,0.00039667,7]
[379118299,1755151857167,-151.0,0.00039667,7]
[379118301,1755151857176,-153.0,0.00039667,7]
[379118303,1755151857185,-151.0,0.00039667,7]
[379118305,1755151857194,-151.0,0.00039667,7]
[379118307,1755151857203,-151.0,0.00039667,7]
[379118309,1755151857212,-151.0,0.00039667,7]
[379118311,1755151857222,-151.0,0.00039667,7]
[379118313,1755151857231,-151.0,0.00039667,7]
[379118315,1755151857240,-240.18493016,0.00039667,7]
[379118317,1755151857249,-203.46966659,0.00039667,7]
[379118319,1755151857258,-177.94939297,0.00039667,7]
[379118321,1755151857268,-151.0,0.00039667,7]
[379118323,1755151857277,-151.0,0.00039667,7]
[379118325,1755151857286,-151.0,0.00039667,7]
[379118327,1755151857296,-151.0,0.00039667,7]
[379118329,1755151857305,-151.0,0.00039667,7]
[379118331,1755151857314,-151.0,0.00039667,7]
[379118333,1755151857330,-151.0,0.00039667,7]
[379118335,1755151857350,-151.0,0.00039667,7]
[379118337,1755151857360,-269.85251107,0.00039667,7]
[379118339,1755151857369,-200.0,0.0003967,20]
[379118341,1755151857379,-4628.06471372,0.00039676,4]
[379118343,1755151857389,-295.59726609,0.00039676,2]
[379118346,1755151857399,-34532.0512,0.00039686,2]
[379118347,1755151857408,-1500.0,0.00039686,120]
[379118350,1755151857418,-500.0,0.00039688,7]
[379118352,1755151857428,-583.49,0.00039688,7]
[379118354,1755151857437,-500.0,0.00039688,7]
[379118356,1755151857447,-500.0,0.00039688,7]
[379118357,1755151857456,-500.0,0.00039688,7]
[379118359,1755151857465,-529.24,0.00039688,7]
[379118362,1755151857475,-600.0,0.000397,14]
[379118363,1755151857484,-607.0,0.00039726,15]
[379118366,1755151857494,-150.0,0.00039726,15]
[379118368,1755151857503,-150.0,0.00039726,15]
[379118370,1755151857512,-500.0,0.00039726,15]
[379118372,1755151857522,-503.47733551,0.00039726,15]
[379118374,1755151857531,-500.0,0.00039726,15]
[379118376,1755151857541,-500.0,0.00039726,15]
[379118378,1755151857550,-203.37570034,0.00039726,15]
[379118379,1755151857560,-150.0,0.00039726,15]
[379118381,1755151857571,-151.88359434,0.00039726,15]
[379118383,1755151857581,-150.0,0.00039726,15]
[379118386,1755151857591,-608.36688683,0.00039726,15]
[379118388,1755151857601,-6942.09707058,0.00039758,4]
[379118389,1755151857610,-2314.03235686,0.00039763,4]
[379118390,1755151857620,-151.0,0.00039768,30]
[379118391,1755151857630,-151.0,0.00039768,30]
[379118392,1755151857640,-5318.7514041,0.00039768,2]
[379118393,1755151857649,-5110.7213501,0.00039768,2]
[379118394,1755151857659,-4910.8278868,0.00039768,2]
[379118395,1755151857668,-9252.9429791,0.00039768,2]
[379118396,1755151857677,-4356.846361,0.00039768,2]
[379118397,1755151857686,-8209.1353793,0.00039768,2]
[379118398,1755151857696,-7579.5328423,0.00039768,2]
[379118399,1755151857705,-3568.9034458,0.00039768,2]
[379118400,1755151857715,-3429.3144483,0.00039768,2]
[379118401,1755151857725,-506.24707629,0.00039773,5]
[379118402,1755151857735,-151.0,0.00039773,30]
[379118403,1755151857744,-151.0,0.00039773,30]
[379118404,1755151857755,-151.0,0.00039773,30]
[379118405,1755151857764,-247.33,0.00039785,2]
[379118406,1755151857774,-15639.4940577,0.00039786,2]
[379118407,1755151857784,-12732.0929541,0.00039786,2]
[379118408,1755151857793,-5995.0410351,0.00039786,2]
[379118409,1755151857802,-5760.5595534,0.00039786,2]
[379118410,1755151857812,-5535.2492458,0.00039786,2]
[379118412,1755151857822,-151.0,0.00039786,30]
[379118414,1755151857832,-151.0,0.00039786,30]
[379118416,1755151857841,-151.0,0.00039786,30]
[379118418,1755151857851,-169.377952,0.00039786,30]
[379118420,1755151857860,-169.377952,0.00039786,30]
[379118421,1755151857869,-151.0,0.00039786,30]
[379118422,1755151857879,-151.0,0.00039786,30]
[379118423,1755151857889,-151.0,0.00039786,30]
[379118424,1755151857899,-312.16,0.00039791,2]
[379118425,1755151857910,-1000.0,0.000398,120]
[379118426,1755151857925,-324.8174,0.000398,2]
[379118427,1755151857935,-600.0,0.000398,14]
[379118428,1755151857947,-5000.0,0.00039803,2]
[379118429,1755151857961,-150.0,0.00039814,7]
[379118430,1755151857970,-150.0,0.00039857,2]
[379118431,1755151857980,-173.4,0.00039857,2]
[379118432,1755151857989,-150.0,0.00039857,2]
[379118433,1755151857998,-158.02062746,0.00039858,13]
[379118434,1755151858008,-168.0,0.00039866,7]
[379118435,1755151858018,-823.15952,0.0003987,2]
[379118436,1755151858027,-230.70548942,0.0003989,2]
[379118437,1755151858036,-1695.88125658,0.000399,5]
[379118438,1755151858045,-33255.5253,0.000399,2]
[379118439,1755151858055,-1000.0,0.000399,120]
[379118440,1755151858064,-240.0,0.000399,2]
[379118441,1755151858074,-600.0,0.000399,14]
[379118442,1755151858083,-507.0,0.000399,2]
[379118443,1755151858092,-380.0,0.000399,2]
[379118444,1755151858101,-6461.4871014,0.00039902,2]
[379118445,1755151858111,-230.70548939,0.00039924,2]
[379118446,1755151858120,-158.02062744,0.00039936,13]
[379118447,1755151858129,-2355.75,0.00039944,23]
[379118448,1755151858139,-657.326351,0.00039948,30]
[379118449,1755151858148,-657.326351,0.00039948,30]
[379118450,1755151858158,-993.63347,0.00039948,30]
[379118451,1755151858167,-993.63347,0.00039948,30]
[379118452,1755151858178,-166.853989,0.00039948,30]
[379118453,1755151858189,-166.853989,0.00039948,30]
[379118454,1755151858199,-230.70548939,0.00039957,2]
[379118455,1755151858209,-151.0,0.00039958,30]
[379118456,1755151858218,-151.0,0.00039958,30]
[379118457,1755151858227,-151.0,0.00039958,30]
[379118458,1755151858237,-151.0,0.00039958,30]
[379118459,1755151858246,-350.0,0.0003996,120]
[379118460,1755151858255,-1000.0,0.0003997,2]
[379118461,1755151858265,-1800.0,0.0003997,2]
[379118462,1755151858276,-988.93461072,0.0003997,2]
[379118463,1755151858286,-500.0,0.0003997,2]
[379118464,1755151858296,-1000.0,0.0003997,2]
[379118465,1755151858307,-352.0,0.0003997,120]
[379118466,1755151858321,-421.31705988,0.0003997,2]
[379118467,1755151858333,-823.15952,0.0003997,2]
[379118468,1755151858344,-150.0,0.00039971,7]
[379118469,1755151858355,-1251.0,0.00039973,120]
[379118470,1755151858366,-500.0,0.00039973,5]
[379118471,1755151858376,-324.2643365,0.00039973,5]
[379118472,1755151858386,-500.0,0.00039973,5]
[379118473,1755151858397,-352.0,0.0003998,120]
[379118474,1755151858407,-352.0,0.0003999,120]
[379118475,1755151858417,-230.70548939,0.00039991,2]
[379118476,1755151858427,-480.9230168,0.00039997,2]
[379118477,1755151858437,-833.4311794,0.00039997,2]
[379118478,1755151858448,-401.5026196,0.00039997,2]
[379118479,1755151858458,-607.0,0.0004,15]
[379118480,1755151858469,-150.0,0.0004,15]
[379118481,1755151858479,-200.0,0.0004,15]
[379118482,1755151858489,-644.05041451,0.0004,15]
[379118483,1755151858499,-506.68766964,0.0004,15]
[379118484,1755151858510,-500.0,0.0004,15]
[379118485,1755151858520,-150.0,0.0004,15]
[379118486,1755151858531,-287.01293582,0.0004,15]
[379118487,1755151858540,-659.962784,0.0004,30]
[379118488,1755151858550,-257.48,0.0004,30]
[379118489,1755151858560,-257.48,0.0004,30]
[379118490,1755151858572,-151.0,0.0004,30]
[379118491,1755151858582,-151.0,0.0004,30]
[379118492,1755151858592,-151.0,0.0004,30]
[379118493,1755151858602,-183.758308,0.0004,30]
[379118494,1755151858612,-183.758308,0.0004,30]
[379118495,1755151858621,-296.66023,0.0004,30]
[379118496,1755151858631,-296.66023,0.0004,30]
[379118497,1755151858640,-245.542036,0.0004,30]
[379118498,1755151858651,-224.446214,0.0004,30]
[379118499,1755151858663,-224.446214,0.0004,30]
[379118500,1755151858672,-192.957596,0.0004,30]
[379118501,1755151858682,-192.957596,0.0004,30]
[379118502,1755151858691,-151.0,0.0004,30]
[379118503,1755151858701,-26685.12432332,0.0004,2]
[379118504,1755151858710,-151.0,0.0004,30]
[379118505,1755151858720,-151.0,0.0004,30]
[379118506,1755151858729,-151.0,0.0004,30]
[379118507,1755151858739,-967.080589,0.0004,30]
[379118509,1755151858748,-967.080589,0.0004,30]
[379118510,1755151858757,-163.600557,0.0004,30]
[379118512,1755151858767,-163.600557,0.0004,30]
[379118514,1755151858777,-217.68940856,0.0004,30]
[379118516,1755151858786,-151.0,0.0004,30]
[379118518,1755151858795,-151.0,0.0004,30]
[379118520,1755151858805,-151.0,0.0004,30]
[379118522,1755151858814,-151.0,0.0004,30]
[379118524,1755151858826,-151.0,0.0004,30]
[379118526,1755151858836,-182.924226,0.0004,30]
[379118528,1755151858845,-151.0,0.0004,30]
[379118530,1755151858855,-182.924226,0.0004,30]
[379118532,1755151858865,-362.941334,0.0004,30]
[379118534,1755151858874,-362.941334,0.0004,30]
[379118536,1755151858883,-151.0,0.0004,30]
[379118538,1755151858893,-16445.58691344,0.0004,4]
[379118540,1755151858902,-265.916978,0.0004,30]
[379118542,1755151858914,-265.916978,0.0004,30]
[379118544,1755151858929,-1000.0,0.0004,120]
[379118546,1755151858941,-715.17832714,0.0004,120]
[379118548,1755151858950,-500.0,0.0004,120]
[379118550,1755151858960,-840.643712,0.0004,30]
[379118552,1755151858972,-840.643712,0.0004,30]
[379118554,1755151858991,-152.0,0.0004,120]
[379118555,1755151859001,-700.5082464,0.0004,120]
[379118556,1755151859012,-152.0,0.0004,120]
[379118557,1755151859022,-220.873943,0.0004,30]
[379118558,1755151859032,-152.0,0.0004,90]
[379118559,1755151859041,-220.873943,0.0004,30]
[379118560,1755151859050,-311.140994,0.0004,30]
[379118561,1755151859060,-311.140994,0.0004,30]
[379118562,1755151859071,-500.0,0.0004,120]
[379118563,1755151859080,-700.0,0.0004,120]
[379118564,1755151859090,-700.0,0.0004,120]
[379118565,1755151859099,-700.0,0.0004,120]
[379118566,1755151859109,-700.0,0.0004,120]
[379118567,1755151859120,-700.0,0.0004,120]
[379118568,1755151859130,-700.0,0.0004,120]
[379118569,1755151859140,-221.68,0.0004,120]
[379118570,1755151859150,-700.0,0.0004,120]
[379118571,1755151859160,-700.0,0.0004,120]
[379118572,1755151859170,-700.0,0.0004,120]
[379118573,1755151859180,-700.0,0.0004,120]
[379118574,1755151859190,-700.0,0.0004,120]
[379118575,1755151859200,-700.0,0.0004,120]
[379118576,1755151859210,-700.0,0.0004,120]
[379118577,1755151859220,-700.0,0.0004,120]
[379118578,1755151859230,-700.0,0.0004,120]
[379118579,1755151859239,-700.0,0.0004,120]
[379118580,1755151859250,-700.0,0.0004,120]
[379118581,1755151859259,-700.0,0.0004,120]
[379118582,1755151859270,-700.0,0.0004,120]
[379118583,1755151859281,-700.0,0.0004,120]
[379118584,1755151859290,-700.0,0.0004,120]
[379118585,1755151859300,-700.0,0.0004,120]
[379118586,1755151859309,-700.0,0.0004,120]
[379118587,1755151859319,-700.0,0.0004,120]
[379118588,1755151859329,-700.0,0.0004,120]
[379118589,1755151859338,-1000.0,0.0004,120]
[379118590,1755151859348,-3000.0,0.0004,30]
[379118591,1755151859357,-3027.41477047,0.0004,30]
[379118592,1755151859367,-3000.0,0.0004,30]
[379118593,1755151859377,-500.0,0.0004,120]
[379118594,1755151859387,-3000.0,0.0004,30]
[379118595,1755151859397,-250.69,0.0004,120]
[379118596,1755151859406,-270.76,0.0004,120]
[379118597,1755151859417,-500.0,0.0004,120]
[379118598,1755151859427,-803.66,0.0004,120]
[379118599,1755151859436,-190.69,0.0004,120]
[379118600,1755151859446,-207.13,0.0004,120]
[379118601,1755151859456,-700.0,0.0004,120]
[379118603,1755151859469,-700.0,0.0004,120]
[379118605,1755151859479,-700.0,0.0004,120]
[379118607,1755151859488,-700.0,0.0004,120]
[379118609,1755151859498,-700.0,0.0004,120]
[379118611,1755151859507,-700.0,0.0004,120]
[379118613,1755151859517,-700.0,0.0004,120]
[379118615,1755151859527,-700.0,0.0004,120]
[379118616,1755151859536,-180.0,0.0004,120]
[379118617,1755151859546,-1000.0,0.0004,7]
[379118618,1755151859556,-1000.0,0.0004,7]
[379118619,1755151859565,-1000.0,0.0004,7]
[379118620,1755151859575,-1000.0,0.0004,7]
[379118621,1755151859585,-1000.0,0.0004,7]
[379118622,1755151859594,-994.53119245,0.0004,120]
[379118623,1755151859603,-151.0,0.0004,2]
[379118624,1755151859613,-3253.733,0.0004,37]
[379118625,1755151859623,-2000.0,0.0004,41]
[379118626,1755151859632,-2000.0,0.0004,41]
[379118627,1755151859641,-200.0,0.0004,7]
[379118628,1755151859651,-1007.0,0.0004,30]
[379118629,1755151859660,-2508.86,0.0004,120]
[379118630,1755151859670,-605.62,0.0004,120]
[379118631,1755151859679,-691.81,0.0004,120]
[379118632,1755151859689,-1000.0,0.0004,2]
[379118633,1755151859699,-1000.0,0.0004,2]
[379118634,1755151859708,-1000.0,0.0004,2]
[379118635,1755151859717,-1000.0,0.0004,2]
[379118636,1755151859727,-1000.0,0.0004,2]
[379118637,1755151859736,-200.0,0.0004,7]
[379118638,1755151859745,-10405.60031735,0.0004,120]
[379118639,1755151859756,-151.0,0.0004,30]
[379118640,1755151859765,-207.037113,0.0004,30]
[379118641,1755151859775,-151.0,0.0004,30]
[379118642,1755151860005,-1618.7101,0.0004,120]
[379118643,1755151860015,-3000.0,0.0004,30]
[379118644,1755151860025,-3000.0,0.0004,30]
[379118645,1755151860035,-3000.0,0.0004,30]
[379118646,1755151860046,-3000.0,0.0004,30]
[379118647,1755151860056,-3000.0,0.0004,30]
[379118648,1755151860065,-3000.0,0.0004,30]
[379118649,1755151860076,-151.0,0.0004,30]
[379118650,1755151860086,-151.0,0.0004,30]
[379118651,1755151860096,-165.7,0.0004,41]
[379118652,1755151860106,-151.0,0.0004,30]
[379118653,1755151860116,-151.0,0.0004,30]
[379118654,1755151860126,-151.0,0.0004,30]
[379118655,1755151860135,-2006.36,0.0004,30]
[379118656,1755151860147,-982.795533,0.0004,32]
[379118657,1755151860156,-378.869171,0.0004,19]
[379118658,1755151860166,-604.29,0.0004,30]
[379118659,1755151860176,-593.13,0.0004,30]
[379118660,1755151860186,-233.303083,0.00040001,30]
[379118661,1755151860195,-233.303083,0.00040001,30]
[379118662,1755151860205,-151.0,0.00040001,2]
[379118663,1755151860215,-227.988028,0.00040001,30]
[379118664,1755151860225,-227.988028,0.00040001,30]
[379118665,1755151860234,-151.0,0.00040002,30]
[379118666,1755151860245,-151.0,0.00040002,30]
[379118667,1755151860254,-151.0,0.00040002,30]
[379118668,1755151860264,-151.0,0.00040002,30]
[379118669,1755151860274,-151.0,0.00040002,30]
[379118670,1755151860284,-151.0,0.00040002,30]
[379118671,1755151860294,-657.326351,0.00040002,30]
[379118672,1755151860303,-657.326351,0.00040002,30]
[379118673,1755151860312,-657.326351,0.00040002,30]
[379118674,1755151860323,-657.326351,0.00040002,30]
[379118675,1755151860333,-233.303083,0.00040002,30]
[379118676,1755151860343,-233.303083,0.00040002,30]
[379118677,1755151860353,-233.303083,0.00040002,30]
[379118678,1755151860363,-233.303083,0.00040002,30]
[379118679,1755151860373,-151.0,0.00040002,30]
[379118680,1755151860383,-151.0,0.00040002,30]
[379118681,1755151860392,-993.63347,0.00040002,30]
[379118682,1755151860402,-993.63347,0.00040002,30]
[379118683,1755151860412,-151.0,0.00040002,30]
[379118684,1755151860422,-151.0,0.00040002,30]
[379118685,1755151860431,-166.853989,0.00040002,30]
[379118686,1755151860441,-166.853989,0.00040002,30]
[379118687,1755151860451,-166.853989,0.00040002,30]
[379118688,1755151860460,-166.853989,0.00040002,30]
[379118689,1755151860470,-151.0,0.00040002,2]
[379118690,1755151860480,-151.0,0.00040002,2]
[379118691,1755151860490,-151.0,0.00040002,30]
[379118692,1755151860501,-152.622685,0.00040002,30]
[379118693,1755151860511,-151.0,0.00040002,30]
[379118694,1755151860520,-151.0,0.00040002,30]
[379118695,1755151860530,-151.0,0.00040002,30]
[379118696,1755151860540,-179.230033,0.00040002,30]
[379118697,1755151860550,-690.736424,0.00040002,30]
[379118698,1755151860559,-690.736424,0.00040002,30]
[379118699,1755151860570,-690.736424,0.00040002,30]
[379118700,1755151860579,-690.736424,0.00040002,30]
[379118701,1755151860589,-1065.117306,0.00040002,30]
[379118702,1755151860599,-1065.117306,0.00040002,30]
[379118703,1755151860608,-151.0,0.00040002,30]
[379118704,1755151860618,-1065.117306,0.00040002,30]
[379118705,1755151860628,-1065.117306,0.00040002,30]
[379118706,1755151860638,-151.0,0.00040002,30]
[379118707,1755151860648,-169.377952,0.00040002,30]
[379118708,1755151860659,-169.377952,0.00040002,30]
[379118709,1755151860668,-169.377952,0.00040002,30]
[379118710,1755151860678,-169.377952,0.00040002,30]
[379118711,1755151860688,-151.0,0.00040002,30]
[379118712,1755151860697,-151.0,0.00040002,30]
[379118713,1755151860707,-151.0,0.00040002,30]
[379118714,1755151860716,-151.0,0.00040002,30]
[379118715,1755151860726,-151.0,0.00040002,30]
[379118716,1755151860736,-151.0,0.00040002,30]
[379118717,1755151860746,-152.206171,0.00040002,30]
[379118718,1755151860756,-227.988028,0.00040002,30]
[379118719,1755151860766,-227.988028,0.00040002,30]
[379118720,1755151860776,-227.988028,0.00040002,30]
[379118721,1755151860786,-227.988028,0.00040002,30]
[379118722,1755151860796,-151.0,0.00040002,30]
[379118723,1755151860806,-151.0,0.00040002,30]
[379118724,1755151860816,-391298.5168379,0.00040002,30]
[379118725,1755151860829,-2000.0,0.0004001,41]
[379118726,1755151860839,-2292.161115,0.0004001,41]
[379118727,1755151860848,-300.0,0.00040012,10]
[379118728,1755151860858,-151.0,0.00040013,30]
[379118729,1755151860867,-151.0,0.00040013,30]
[379118730,1755151860877,-151.0,0.00040013,30]
[379118731,1755151860887,-657.326351,0.00040013,30]
[379118732,1755151860896,-657.326351,0.00040013,30]
[379118733,1755151860905,-657.326351,0.00040013,30]
[379118734,1755151860917,-657.326351,0.00040013,30]
[379118735,1755151860928,-233.303083,0.00040013,30]
[379118736,1755151860938,-233.303083,0.00040013,30]
[379118737,1755151860948,-151.0,0.00040013,30]
[379118738,1755151860959,-993.63347,0.00040013,30]
[379118739,1755151860968,-993.63347,0.00040013,30]
[379118740,1755151860977,-151.0,0.00040013,30]
[379118741,1755151860987,-166.853989,0.00040013,30]
[379118742,1755151860998,-166.853989,0.00040013,30]
[379118743,1755151861008,-166.853989,0.00040013,30]
[379118744,1755151861018,-166.853989,0.00040013,30]
[379118745,1755151861027,-151.0,0.00040013,2]
[379118746,1755151861037,-151.0,0.00040013,30]
[379118747,1755151861047,-690.736424,0.00040013,30]
[379118748,1755151861056,-690.736424,0.00040013,30]
[379118749,1755151861066,-1065.117306,0.00040013,30]
[379118750,1755151861079,-151.0,0.00040013,30]
[379118751,1755151861089,-1065.117306,0.00040013,30]
[379118752,1755151861099,-151.0,0.00040013,30]
[379118753,1755151861109,-169.377952,0.00040013,30]
[379118754,1755151861118,-169.377952,0.00040013,30]
[379118755,1755151861128,-151.0,0.00040013,30]
[379118756,1755151861138,-151.0,0.00040013,30]
[379118757,1755151861148,-151.0,0.00040013,30]
[379118758,1755151861158,-227.988028,0.00040013,30]
[379118759,1755151861168,-227.988028,0.00040013,30]
[379118760,1755151861178,-151.0,0.00040013,30]
[379118761,1755151861187,-158.02062744,0.00040013,13]
[379118762,1755151861197,-2974.420459,0.0004002,41]
[379118763,1755151861207,-230.70548939,0.00040024,2]
[379118764,1755151861217,-500.0,0.00040027,120]
[379118765,1755151861227,-218.855872,0.00040027,120]
[379118766,1755151861237,-500.0,0.00040027,120]
[379118767,1755151861247,-513.464952,0.00040027,120]
[379118768,1755151861257,-230.70548939,0.00040058,2]
[379118769,1755151861267,-159.87092237,0.00040068,5]
[379118770,1755151861276,-352.0,0.0004008,120]
[379118771,1755151861287,-291.0,0.00040081,7]
[379118772,1755151861297,-150.0,0.00040089,120]
[379118773,1755151861307,-352.0,0.0004009,120]
[379118774,1755151861318,-230.70548939,0.00040091,2]
[379118775,1755151861328,-158.02062744,0.00040091,14]
[379118776,1755151861337,-589.15288877,0.00040091,2]
[379118777,1755151861347,-2032.6746966,0.000401,120]
[379118778,1755151861357,-151.0,0.000401,30]
[379118779,1755151861367,-357.219194,0.000401,30]
[379118780,1755151861376,-357.219194,0.000401,30]
[379118781,1755151861386,-151.0,0.000401,30]
[379118782,1755151861396,-205.184467,0.000401,30]
[379118783,1755151861406,-205.184467,0.000401,30]
[379118784,1755151861416,-175.881982,0.000401,30]
[379118785,1755151861427,-175.881982,0.000401,30]
[379118786,1755151861436,-1759.353128,0.000401,30]
[379118787,1755151861446,-1759.353128,0.000401,30]
[379118788,1755151861456,-202.24057,0.000401,30]
[379118789,1755151861466,-424.842949,0.000401,30]
[379118790,1755151861476,-424.842949,0.000401,30]
[379118791,1755151861485,-589.15288875,0.00040102,2]
[379118792,1755151861495,-589.15288875,0.00040112,2]
[379118793,1755151861505,-485.99787145,0.00040122,28]
[379118794,1755151861514,-589.15288875,0.00040123,2]
[379118795,1755151861524,-589.15288875,0.00040133,2]
[379118796,1755151861534,-5965.9210662,0.00040137,2]
[379118797,1755151861543,-1326.96810997,0.00040144,2]
[379118798,1755151861553,-236.82830097,0.00040144,2]
[379118799,1755151861564,-441.98677328,0.00040144,2]
[379118800,1755151861575,-15777.86460878,0.00040144,15]
[379118801,1755151861586,-653.68159721,0.00040144,51]
[379118802,1755151861596,-157.81658343,0.00040144,15]
[379118803,1755151861605,-589.15288875,0.00040144,2]
[379118804,1755151861615,-150.0,0.0004015,30]
[379118805,1755151861625,-356.05,0.0004018,120]
[379118806,1755151861635,-1000.0,0.00040182,30]
[379118807,1755151861646,-167.18039019,0.00040182,30]
[379118808,1755151861656,-150.0,0.00040182,2]
[379118809,1755151861666,-400.0,0.00040182,120]
[379118810,1755151861675,-295.59726609,0.00040183,7]
[379118811,1755151861685,-151.596357,0.00040188,30]
[379118812,1755151861695,-585.132848,0.00040188,30]
[379118813,1755151861705,-585.132848,0.00040188,30]
[379118814,1755151861715,-215.731383,0.00040188,30]
[379118815,1755151861725,-215.731383,0.00040188,30]
[379118816,1755151861734,-151.0,0.00040188,30]
[379118817,1755151861744,-151.0,0.00040188,30]
[379118818,1755151861753,-151.0,0.00040188,30]
[379118819,1755151861764,-151.0,0.00040188,30]
[379118820,1755151861773,-170.587579,0.00040188,30]
[379118821,1755151861782,-170.587579,0.00040188,30]
[379118822,1755151861792,-217.72316585,0.0004019,30]
[379118823,1755151861801,-355.362612,0.0004019,30]
[379118824,1755151861811,-355.362612,0.0004019,30]
[379118825,1755151861822,-12469.14097401,0.0004019,7]
[379118826,1755151861832,-352.0,0.0004019,120]
[379118827,1755151861842,-300.0,0.0004019,10]
[379118828,1755151861852,-300.0,0.0004019,10]
[379118829,1755151861862,-300.0,0.00040191,10]
[379118830,1755151861870,-151.0,0.00040191,30]
[379118831,1755151861880,-151.0,0.00040191,30]
[379118832,1755151861890,-151.0,0.00040191,30]
[379118833,1755151861899,-151.0,0.00040191,30]
[379118834,1755151861911,-151.0,0.00040191,30]
[379118835,1755151861922,-151.0,0.00040191,30]
[379118836,1755151861931,-151.0,0.00040191,30]
[379118837,1755151861941,-151.0,0.00040191,30]
[379118838,1755151861951,-217.660983,0.00040191,30]
[379118839,1755151861960,-151.0,0.00040191,30]
[379118840,1755151861970,-151.0,0.00040191,30]
[379118841,1755151861979,-657.326351,0.00040191,30]
[379118842,1755151861988,-657.326351,0.00040191,30]
[379118843,1755151862000,-657.326351,0.00040191,30]
[379118844,1755151862009,-657.326351,0.00040191,30]
[379118845,1755151862019,-657.326351,0.00040191,30]
[379118846,1755151862029,-657.326351,0.00040191,30]
[379118847,1755151862038,-657.326351,0.00040191,30]
[379118848,1755151862048,-657.326351,0.00040191,30]
[379118849,1755151862057,-657.326351,0.00040191,30]
[379118850,1755151862067,-657.326347,0.00040191,30]
[379118851,1755151862080,-233.303083,0.00040191,30]
[379118852,1755151862089,-233.303083,0.00040191,30]
[379118853,1755151862099,-233.303083,0.00040191,30]
[379118854,1755151862109,-233.303083,0.00040191,30]
[379118855,1755151862119,-233.303083,0.00040191,30]
[379118856,1755151862128,-233.303083,0.00040191,30]
[379118857,1755151862139,-233.303083,0.00040191,30]
[379118858,1755151862148,-233.303083,0.00040191,30]
[379118859,1755151862158,-233.303083,0.00040191,30]
[379118860,1755151862168,-233.303083,0.00040191,30]
[379118861,1755151862177,-233.303083,0.00040191,30]
[379118862,1755151862187,-233.303076,0.00040191,30]
[379118863,1755151862196,-151.0,0.00040191,30]
[379118864,1755151862206,-151.0,0.00040191,30]
[379118865,1755151862216,-151.0,0.00040191,30]
[379118866,1755151862226,-151.0,0.00040191,30]
[379118867,1755151862235,-151.0,0.00040191,30]
[379118868,1755151862245,-993.63347,0.00040191,30]
[379118869,1755151862255,-993.63347,0.00040191,30]
[379118870,1755151862264,-993.63347,0.00040191,30]